bitfinex/quotes_SOLUSD_20260226
["timestamp","ask_amount","ask_price","bid_price","bid_amount"]
[1772093763482,3.60859885,87.6,87.54,1e-08]
[1772093763483,1.23777128,87.579,87.54,1e-08]
[1772093763788,3.60859885,87.56,87.54,1e-08]
[1772093763992,15.02935178,87.56,87.54,1e-08]
[1772093764384,1.23777128,87.562,87.54,1e-08]
[1772093764589,3.60859885,87.57,87.541,1.26384908]
[1772093764996,1.23777128,87.569,87.541,1.26384908]
[1772093766208,12.65746797,87.568,87.541,1.26384908]
[1772093766585,3.60859885,87.56,87.541,1.26384908]
[1772093766785,3.60859885,87.56,87.54,1e-08]
[1772093767988,11.42217501,87.549,87.54,1e-08]
[1772093768799,11.42141011,87.555,87.54,1e-08]
[1772093769110,3.60859885,87.55,87.54,1e-08]
[1772093769404,5.36086188,87.585,87.54,1e-08]
[1772093769405,3.60859885,87.57,87.541,1.26384908]
[1772093769604,1.23777128,87.569,87.541,1.26384908]
[1772093769812,3.60859885,87.56,87.54,1e-08]
[1772093770004,1.23777128,87.559,87.54,1e-08]
[1772093770204,1.23777128,87.557,87.54,1e-08]
[1772093770913,11.4203563,87.563,87.54,1.26384909]
[1772093771504,3.60859885,87.56,87.54,1e-08]
[1772093771705,1.23777128,87.559,87.54,1e-08]
[1772093773112,11.42100093,87.558,87.54,1e-08]
[1772093775813,3.60859885,87.56,87.54,1e-08]
[1772093775814,3.60859885,87.58,87.551,1.26384908]
[1772093776396,1.23777128,87.583,87.551,1.26384908]
[1772093777014,11.41721945,87.587,87.551,1.26384908]
[1772093777220,11.41721945,87.587,87.561,1.26384908]
[1772093777721,1.23777128,87.607,87.571,1.26384908]
[1772093778201,3.60859885,87.6,87.571,1.26384908]
[1772093778395,1.23777128,87.607,87.573,1.26384908]
[1772093779913,1.23777128,87.607,87.58,4.87244793]
[1772093780122,1.23777128,87.607,87.58,1.26384908]
[1772093781217,1.23777128,87.605,87.571,1.26384908]
[1772093781511,11.41474328,87.606,87.571,1.26384908]
[1772093781512,1.23777128,87.599,87.571,1.26384908]
[1772093782118,12.65251456,87.606,87.572,1.26384908]
[1772093782517,1.23777128,87.605,87.572,1.26384908]
[1772093783414,11.41500388,87.604,87.572,1.26384908]
[1772093783719,1.23777128,87.603,87.572,1.26384908]
[1772093785219,1.23777128,87.603,87.565,1.26384908]
[1772093785408,11.41839274,87.578,87.542,1.26384908]
[1772093786012,3.60859885,87.57,87.542,1.26384908]
[1772093787221,1.2487259,87.577,87.544,1.21663667]
[1772093787702,9.67429458,87.57,87.544,1.21663667]
[1772093787898,0.25522588,87.546,87.505,1.21663667]
[1772093788099,9.67429458,87.52,87.505,1.21663667]
[1772093788309,0.25522588,87.576,87.505,1.21663667]
[1772093788510,9.67429458,87.55,87.511,1.21663667]
[1772093789521,9.67429458,87.56,87.521,1.21663667]
[1772093789722,11.41956628,87.569,87.541,1.21663667]
[1772093789929,11.41885488,87.575,87.541,1.21663667]
[1772093791625,9.67429458,87.57,87.541,1.21663667]
[1772093792231,9.67429458,87.58,87.543,1.21663667]
[1772093792406,9.67429458,87.57,87.543,1.21663667]
[1772093792806,9.67429458,87.56,87.534,1.21663667]
[1772093793711,0.25573401,87.569,87.534,1.21663667]
[1772093793916,11.41993708,87.567,87.541,1.21663667]
[1772093794228,11.41695875,87.589,87.551,1.21663667]
[1772093794528,0.25583979,87.588,87.551,1.21663667]
[1772093795911,11.41695875,87.589,87.553,1.27468496]
[1772093796117,11.41695875,87.589,87.561,1.27468496]
[1772093798026,0.25639098,87.588,87.553,1.27468496]
[1772093799134,11.41695875,87.589,87.553,1.27468496]
[1772093801335,11.41695875,87.589,87.529,1.27468496]
[1772093801336,9.67429458,87.58,87.529,1.27468496]
[1772093801523,9.67429458,87.56,87.522,1.27468496]
[1772093801831,9.67429458,87.55,87.522,1.27468496]
[1772093803627,11.41969669,87.568,87.531,1.27468496]
[1772093804020,9.67429458,87.56,87.531,1.27468496]
[1772093805631,11.42087049,87.559,87.531,1.27468496]
[1772093807317,39.96893842,87.568,87.531,1.27468496]
[1772093807939,9.67429458,87.54,87.501,1.27468496]
[1772093808320,9.9316251,87.55,87.511,1.27468496]
[1772093809620,11.42217501,87.549,87.511,1.27468496]
[1772093810142,39.97761253,87.549,87.511,1.27468496]
[1772093810640,9.67429458,87.54,87.511,1.27468496]
[1772093810818,9.93188604,87.54,87.511,1.27468496]
[1772093811523,9.67429458,87.54,87.511,1.27468496]
[1772093812142,28.55543752,87.549,87.511,1.27468496]
[1772093812349,21.09503464,87.56,87.521,1.27468496]
[1772093812540,49.64688479,87.56,87.521,1.27468496]
[1772093813036,9.67429458,87.55,87.521,1.27468496]
[1772093813541,49.64688479,87.56,87.521,1.27468496]
[1772093816540,11.42100093,87.558,87.521,1.27468496]
[1772093818231,40.22402731,87.558,87.521,1.27468496]
[1772093820360,11.42034027,87.564,87.531,1.2765869]
[1772093820570,104.1,87.584,87.531,1.2765869]
[1772093820571,11.41565542,87.599,87.551,1.2765869]
[1772093820734,11.41565542,87.599,87.54,9.67429458]
[1772093820934,1.1716603,87.598,87.57,9.67429458]
[1772093821859,1.1716603,87.589,87.55,9.67429458]
[1772093822036,1.1716603,87.589,87.56,9.67429458]
[1772093822239,11.41591607,87.597,87.57,9.67429458]
[1772093822456,1.1716603,87.606,87.57,9.67429458]
[1772093822779,1.1716603,87.614,87.581,1.2765869]
[1772093823359,28.53569865,87.61,87.581,1.2765869]
[1772093824250,11.41304968,87.619,87.601,1.2765869]
[1772093825442,1.1716603,87.618,87.578,1.2765869]
[1772093825766,1.1716603,87.618,87.581,1.2765869]
[1772093826254,1.1716603,87.618,87.6,9.6598927]
[1772093826460,11.4133102,87.617,87.591,1.2765869]
[1772093826859,39.9465857,87.617,87.591,1.2765869]
[1772093828145,1.1716603,87.616,87.591,1.2765869]
[1772093828550,1.1716603,87.614,87.583,1.2765869]
[1772093829564,1.1716603,87.614,87.559,28.55199805]
[1772093829565,1.1716603,87.599,87.57,9.6598927]
[1772093829952,1.1716603,87.609,87.57,9.6598927]
[1772093830477,1.1716603,87.607,87.57,9.6598927]
[1772093831365,1.1716603,87.607,87.58,9.6598927]
[1772093831679,1.1716603,87.607,87.581,1.2765869]
[1772093833271,1.1716603,87.605,87.581,1.2765869]
[1772093835774,12.58666418,87.604,87.581,1.2765869]
[1772093836172,1.1716603,87.603,87.581,1.2765869]
[1772093837278,1.1716603,87.599,87.561,1.2765869]
[1772093837477,1.1716603,87.589,87.561,1.2765869]
[1772093839465,1.1716603,87.587,87.561,1.2765869]
[1772093839655,1.1716603,87.579,87.54,3.60827761]
[1772093840462,1.1716603,87.579,87.55,3.60827761]
[1772093841362,1.1716603,87.579,87.551,11.42191408]
[1772093841661,11.41810851,87.581,87.561,1.03560237]
[1772093843381,11.41656772,87.592,87.561,1.03560237]
[1772093843575,12.58822802,87.592,87.561,1.03560237]
[1772093844380,11.41656772,87.592,87.57,4.64623938]
[1772093844560,11.41656772,87.592,87.571,1.03796177]
[1772093847387,11.41576641,87.599,87.571,1.03796177]
[1772093847684,1.25250921,87.609,87.581,1.04250456]
[1772093850078,1.25250921,87.607,87.575,1.04579481]
[1772093851563,1.25250921,87.607,87.57,3.60827761]
[1772093852706,1.25250921,87.579,87.541,1.04792118]
[1772093853580,1.25250921,87.579,87.531,1.04897158]
[1772093853764,3.60827761,87.6,87.531,1.04897158]
[1772093853765,1.25250921,87.569,87.531,1.04897158]
[1772093854083,1.25250921,87.569,87.48,3.80827761]
[1772093854084,1.25250921,87.527,87.48,0.2]
[1772093854274,20.55175688,87.568,87.491,1.05000911]
[1772093854467,11.42217501,87.549,87.511,1.19927104]
[1772093854978,3.60827761,87.54,87.501,1.19927104]
[1772093855282,3.60827761,87.53,87.501,1.19927104]
[1772093856271,1.16559757,87.529,87.501,1.19927104]
[1772093856788,11.42491545,87.528,87.501,1.19927104]
[1772093856964,1.16559757,87.527,87.491,1.19927104]
[1772093858581,11.42491545,87.528,87.501,1.19927104]
[1772093858972,1.16559757,87.533,87.501,1.19927104]
[1772093860988,1.16559757,87.531,87.501,1.19927104]
[1772093861581,104.1,87.561,87.521,1.19927104]
[1772093861582,1.16559757,87.548,87.521,1.19927104]
[1772093861890,11.42208002,87.55,87.53,9.68307422]
[1772093862776,11.42208002,87.55,87.53,10.88234526]
[1772093862976,1.16559757,87.538,87.47,1e-08]
[1772093863174,1.16559757,87.479,87.445,1.19927104]
[1772093863373,10.84867179,87.47,87.445,1.19927104]
[1772093863987,1.16559757,87.469,87.445,1.19927104]
[1772093864789,1.16559757,87.469,87.437,1.19927104]
[1772093865693,1.16559757,87.467,87.437,1.19927104]
[1772093868091,11.43301397,87.466,87.441,1.19927104]
[1772093868970,1.16559757,87.47,87.441,1.19927104]
[1772093869698,11.43241701,87.471,87.451,1.19927104]
[1772093870076,1.16559757,87.476,87.451,1.19927104]
[1772093871173,1.16559757,87.476,87.441,1.19927104]
[1772093872398,1.16559757,87.474,87.441,1.19927104]
[1772093872698,1.16559757,87.469,87.441,1.19927104]
[1772093873678,11.43111404,87.481,87.443,1.19927104]
[1772093873877,11.43111404,87.481,87.451,1.19927104]
[1772093875979,9.68307422,87.48,87.451,1.19927104]
[1772093876379,10.954064,87.48,87.451,1.19927104]
[1772093876997,1.27098978,87.479,87.451,1.19927104]
[1772093879700,11.43144562,87.478,87.451,1.19927104]
[1772093880805,11.43087469,87.483,87.451,1.19927104]
[1772093880982,10.954064,87.48,87.451,1.19927104]
[1772093881392,9.68307422,87.48,87.451,1.19927104]
[1772093881587,11.43087469,87.483,87.452,1.23312986]
[1772093882315,11.43013899,87.488,87.454,1.23312986]
[1772093882609,11.42936705,87.494,87.461,1.23312986]
[1772093884502,11.42870204,87.499,87.463,1.23312986]
[1772093885396,11.42896327,87.497,87.463,1.23312986]
[1772093885600,11.42896327,87.497,87.465,1.23312986]
[1772093885799,11.42896327,87.497,87.471,1.23312986]
[1772093886586,1.27098978,87.519,87.491,1.02998197]
[1772093887291,1.27098978,87.519,87.484,1.02994247]
[1772093887493,1.27098978,87.517,87.486,1.02994247]
[1772093888694,11.42648201,87.516,87.491,1.02990405]
[1772093890709,12.69773292,87.514,87.491,1.02990405]
[1772093891586,1.27098978,87.513,87.467,3.69383402]
[1772093891821,1.27098978,87.513,87.44,0.2]
[1772093891822,1.27098978,87.499,87.461,1.02978857]
[1772093893785,1.27098978,87.479,87.45,9.68537225]
[1772093894106,1.27098978,87.479,87.451,1.02969841]
[1772093895303,1.27098978,87.486,87.461,1.02964823]
[1772093898105,12.70152072,87.485,87.461,1.02964823]
[1772093900110,1.27098978,87.488,87.461,1.02964823]
[1772093901720,1.27098978,87.488,87.462,1.02946993]
[1772093903015,28.57208164,87.498,87.462,1.02946993]
[1772093903016,1.27098978,87.497,87.462,1.02946993]
[1772093904514,1.27098978,87.495,87.464,1.02938586]
[1772093907217,1.27098978,87.495,87.466,1.02926716]
[1772093908103,11.42935515,87.494,87.466,1.02926716]
[1772093908310,12.72616021,87.494,87.466,1.02926716]
[1772093908517,1.29680506,87.493,87.466,1.02926716]
[1772093909312,11.42961642,87.492,87.466,1.02926716]
[1772093909623,12.72642148,87.492,87.466,1.02926716]
[1772093910122,1.29680506,87.491,87.466,1.02926716]
[1772093910308,1.29680506,87.489,87.466,1.02926716]
[1772093911330,11.43013899,87.488,87.466,1.02926716]
[1772093911927,1.29680506,87.496,87.468,1.02915119]
[1772093913226,1.29680506,87.494,87.468,1.02915119]
[1772093913521,1.29680506,87.494,87.471,1.02913014]
[1772093916433,1.28701735,87.492,87.461,1.02901746]
[1772093916728,1.28701735,87.489,87.461,1.02901746]
[1772093916914,1.28701735,87.492,87.461,1.02901746]
[1772093918925,1.28701735,87.49,87.462,1.02897735]
[1772093921333,1.28701735,87.49,87.464,1.02893588]
[1772093922215,1.28701735,87.488,87.464,1.02893588]
[1772093922822,1.28701735,87.493,87.464,1.02893588]
[1772093925238,1.28701735,87.493,87.465,11.43314468]
[1772093925436,1.28701735,87.493,87.466,1.02883212]
[1772093928038,3.61767219,87.52,87.444,3.42540352]
[1772093928039,3.61767219,87.48,87.447,3.69383402]
[1772093928211,1.28701735,87.479,87.447,1.02877989]
[1772093928418,1.28701735,87.522,87.471,1.02877989]
[1772093928616,1.28701735,87.522,87.448,3.69383402]
[1772093928617,1.28701735,87.522,87.481,1.02877989]
[1772093929024,1.28701735,87.522,87.49,3.61767219]
[1772093929537,1.28701735,87.522,87.491,1.02874195]
[1772093929736,1.28701735,87.539,87.511,1.02870344]
[1772093929918,1.28701735,87.539,87.52,3.61767219]
[1772093930724,1.28701735,87.539,87.518,1.02870344]
[1772093930925,1.28701735,87.537,87.512,1.02866356]
[1772093931717,1.28701735,87.537,87.513,1.02861443]
[1772093931921,1.28701735,87.545,87.521,1.02861443]
[1772093932122,1.28701735,87.543,87.52,3.61767219]
[1772093933341,1.28701735,87.541,87.52,3.61767219]
[1772093933639,1.28701735,87.541,87.489,28.57498496]
[1772093933640,1.28701735,87.541,87.51,3.61767219]
[1772093934236,1.28701735,87.541,87.52,3.61767219]
[1772093934825,1.28701735,87.541,87.52,4.64618417]
[1772093935336,1.28701735,87.541,87.52,3.61767219]
[1772093935842,1.28701735,87.539,87.52,4.64610664]
[1772093936038,1.25496024,87.544,87.521,1.02843445]
[1772093937242,11.42272339,87.545,87.521,1.02843445]
[1772093937243,12.6779181,87.543,87.521,1.02843445]
[1772093937421,1.25496024,87.542,87.521,1.02843445]
[1772093938142,1.25496024,87.542,87.52,3.61767219]
[1772093939822,11.42321883,87.541,87.52,3.61767219]
[1772093940023,1.25496024,87.54,87.52,3.61767219]
[1772093940644,1.25496024,87.561,87.531,1.02827869]
[1772093940860,1.25496024,87.56,87.54,3.61767219]
[1772093941850,1.25496024,87.578,87.541,1.02824142]
[1772093942049,1.25496024,87.569,87.53,3.61767219]
[1772093942229,1.25496024,87.569,87.531,1.02820172]
[1772093942623,1.25496024,87.569,87.54,3.61767219]
[1772093943741,11.41969669,87.568,87.531,1.02820172]
[1772093944045,1.25496024,87.567,87.531,1.02820172]
[1772093944247,1.25496024,87.567,87.54,3.61767219]
[1772093944845,39.96893842,87.568,87.507,1.0281198]
[1772093944846,1.25496024,87.549,87.507,1.0281198]
[1772093945043,1.25496024,87.539,87.51,3.61767219]
[1772093945344,1.25496024,87.539,87.507,1.0281198]
[1772093945533,1.25496024,87.539,87.51,3.61767219]
[1772093946142,1.25496024,87.537,87.512,1.02809048]
[1772093946347,11.42237373,87.548,87.521,1.02809048]
[1772093946734,12.67733397,87.548,87.521,1.02809048]
[1772093946936,1.25496024,87.547,87.521,1.02809048]
[1772093948548,1.25496024,87.529,87.501,1.02802233]
[1772093948751,1.25496024,87.536,87.501,1.02802233]
[1772093950154,1.25496024,87.545,87.52,3.6128318]
[1772093950435,1.25496024,87.554,87.531,1.02795983]
[1772093951036,11.42165317,87.553,87.531,1.02795983]
[1772093951231,12.67661341,87.553,87.531,1.02795983]
[1772093951440,11.42165317,87.553,87.531,1.02795983]
[1772093952442,12.67590027,87.559,87.531,1.02795983]
[1772093953957,1.25496024,87.558,87.531,1.02795983]
[1772093955665,1.25496024,87.558,87.54,3.6128318]
[1772093956574,11.42040791,87.563,87.54,3.6128318]
[1772093956746,1.25496024,87.573,87.55,3.6128318]
[1772093957864,12.67413531,87.572,87.55,3.6128318]
[1772093958259,1.25496024,87.571,87.55,3.6128318]
[1772093958657,1.25496024,87.571,87.551,1.02766722]
[1772093960268,1.25496024,87.569,87.54,3.6128318]
[1772093961452,11.41969669,87.568,87.532,1.02755874]
[1772093961663,1.25496024,87.567,87.532,1.02755874]
[1772093961970,1.25496024,87.567,87.54,3.6128318]
[1772093962547,11.41995751,87.566,87.54,3.6128318]
[1772093962748,1.25496024,87.565,87.54,3.6128318]
[1772093964284,0.1,87.59,87.522,28.56397751]
[1772093964285,1.25496024,87.571,87.551,1.02747125]
[1772093964579,1.25496024,87.578,87.551,1.02747125]
[1772093964782,12.67348336,87.577,87.551,1.02747125]
[1772093964960,1.35496024,87.59,87.561,1.02743528]
[1772093965362,1.25496024,87.588,87.561,1.02743528]
[1772093966377,11.41695875,87.589,87.561,1.02743528]
[1772093966586,1.17071387,87.588,87.57,3.6128318]
[1772093966768,11.41695875,87.589,87.57,4.64020502]
[1772093967578,0.1,87.59,87.571,1.02734731]
[1772093968077,1.17071387,87.606,87.581,1.02731558]
[1772093968960,11.41487358,87.605,87.581,1.02731558]
[1772093969165,1.17071387,87.604,87.58,3.6128318]
[1772093970983,1.17071387,87.604,87.573,0.92742338]
[1772093971179,1.17071387,87.599,87.553,0.92749003]
[1772093971480,1.17071387,87.599,87.56,4.54032183]
[1772093971671,1.17071387,87.599,87.56,3.6128318]
[1772093971875,1.17071387,87.599,87.561,0.92749003]
[1772093974363,1.28931079,87.597,87.561,0.92749003]
[1772093977475,1.28931079,87.595,87.561,0.92749003]
[1772093979977,1.28931079,87.618,87.581,0.92795646]
[1772093980363,1.28931079,87.609,87.581,0.92795646]
[1772093981383,1.28931079,87.609,87.562,11.4204792]
[1772093981384,1.28931079,87.609,87.574,0.92798465]
[1772093982491,1.28931079,87.607,87.58,3.6128318]
[1772093983483,1.28931079,87.607,87.574,0.92798465]
[1772093984485,1.28931079,87.605,87.574,0.92798465]
[1772093984676,1.28931079,87.605,87.57,3.6128318]
[1772093984866,1.28931079,87.605,87.57,4.54098137]
[1772093986089,1.28931079,87.603,87.57,3.6128318]
[1772093986287,1.28931079,87.599,87.56,3.6128318]
[1772093986675,1.28931079,87.599,87.561,0.92819614]
[1772093987181,1.28931079,87.599,87.571,0.9282631]
[1772093988076,1.28931079,87.599,87.573,0.92830163]
[1772093988397,1.28931079,87.599,87.58,4.54113343]
[1772093988591,1.28931079,87.599,87.581,0.92830163]
[1772093989895,1.28931079,87.599,87.58,3.6128318]
[1772093990495,11.41500388,87.604,87.581,0.92838445]
[1772093990795,1.28931079,87.603,87.581,0.92838445]
[1772093994801,1.28931079,87.609,87.59,3.6128318]
[1772093994978,1.28931079,87.609,87.584,11.41761052]
[1772093995182,1.28931079,87.609,87.585,0.92859138]
[1772093995493,1.28931079,87.619,87.591,0.92859138]
[1772093995869,1.28931079,87.618,87.591,0.92859138]
[1772093997568,1.28569102,87.616,87.591,0.92859138]
[1772093998474,1.28569102,87.616,87.59,3.6128318]
[1772093998797,1.28569102,87.616,87.59,4.54159924]
[1772093999600,1.28569102,87.614,87.591,0.9288248]
[1772094001703,1.28569102,87.614,87.592,12.34545624]
[1772094002082,1.28569102,87.614,87.592,12.3454925]
[1772094002281,1.28569102,87.614,87.581,0.92892478]
[1772094002478,1.28569102,87.609,87.57,3.6128318]
[1772094002818,1.28569102,87.609,87.571,0.92892478]
[1772094003095,1.28569102,87.609,87.581,0.92896007]
[1772094003472,1.28569102,87.609,87.582,11.41787125]
[1772094003676,1.28569102,87.609,87.583,0.92896007]
[1772094003894,12.70005334,87.609,87.583,0.92896007]
[1772094004102,12.70005334,87.609,87.56,4.54182421]
[1772094004103,1.28569102,87.599,87.56,4.54182421]
[1772094004910,1.28569102,87.599,87.56,0.92899241]
[1772094005082,1.28569102,87.599,87.571,0.92903209]
[1772094005893,1.28569102,87.599,87.572,12.34824056]
[1772094006093,1.28569102,87.599,87.572,11.41917507]
[1772094006280,1.28569102,87.599,87.58,3.6128318]
[1772094008108,1.28569102,87.589,87.56,3.6128318]
[1772094008400,1.28569102,87.589,87.561,1.28772346]
[1772094009005,1.28569102,87.597,87.561,1.28772346]
[1772094010987,1.28569102,87.595,87.562,1.28772346]
[1772094012086,1.28569102,87.595,87.57,3.60918556]
[1772094012404,1.28569102,87.595,87.57,4.89690902]
[1772094012590,1.28569102,87.595,87.571,1.28772346]
[1772094013211,1.28569102,87.609,87.573,1.28772346]
[1772094013609,1.28569102,87.619,87.581,1.28772346]
[1772094014908,0.1,87.62,87.601,1.28772346]
[1772094015287,1.38569102,87.62,87.601,1.28772346]
[1772094015603,1.38569102,87.62,87.591,1.28772346]
[1772094015604,1.28569102,87.618,87.591,1.28772346]
[1772094018387,1.28569102,87.616,87.576,1.28772346]
[1772094018590,1.28569102,87.616,87.581,1.28772346]
[1772094019697,1.28569102,87.609,87.571,1.28772346]
[1772094020586,1.28569102,87.607,87.571,11.41930547]
[1772094020788,1.28569102,87.589,87.563,1.28772346]
[1772094021213,1.28569102,87.613,87.57,3.60918556]
[1772094021403,1.28569102,87.618,87.581,1.28772346]
[1772094022716,12.69900122,87.617,87.591,1.28772346]
[1772094023011,1.28569102,87.616,87.591,1.28772346]
[1772094023712,1.28569102,87.616,87.56,3.60918556]
[1772094023713,3.60918556,87.6,87.568,1.28772346]
[1772094023897,1.28569102,87.599,87.568,1.28772346]
[1772094024815,1.28569102,87.597,87.568,1.28772346]
[1772094025417,1.28569102,87.589,87.561,1.28772346]
[1772094025612,1.28569102,87.589,87.554,1.28772346]
[1772094027511,1.30982686,87.587,87.56,3.60918556]
[1772094028717,1.30982686,87.587,87.561,1.24275788]
[1772094030399,1.30982686,87.587,87.563,1.24275788]
[1772094030601,11.41654462,87.593,87.563,1.24275788]
[1772094030908,1.30982686,87.596,87.571,1.24275788]
[1772094031113,11.41482403,87.606,87.571,1.24275788]
[1772094031410,11.41482403,87.606,87.562,11.4204792]
[1772094031411,11.41415601,87.611,87.581,1.24275788]
[1772094033009,1.30982686,87.616,87.591,1.24275788]
[1772094033213,0.1,87.62,87.601,1.24275788]
[1772094033509,11.51297036,87.62,87.6,3.60918556]
[1772094033714,3.60918556,87.61,87.581,1.32037335]
[1772094033898,3.60918556,87.61,87.571,1.32037335]
[1772094034099,11.41304968,87.619,87.561,1.32037335]
[1772094034100,3.60918556,87.6,87.561,1.32037335]
[1772094034922,11.41565542,87.599,87.562,1.32037335]
[1772094035217,11.41565542,87.599,87.571,1.32037335]
[1772094035419,11.4143524,87.609,87.571,1.32037335]
[1772094039415,11.4143524,87.609,87.573,1.32037335]
[1772094040216,11.4143524,87.609,87.572,11.41917507]
[1772094040217,0.1,87.62,87.591,1.32037335]
[1772094040922,32.23840908,87.63,87.611,1.32037335]
[1772094040923,0.1,87.63,87.611,1.32037335]
[1772094043523,0.1,87.63,87.612,1.32037335]
[1772094044402,11.4085347,87.654,87.621,1.32037335]
[1772094045330,11.40782249,87.66,87.631,1.32037335]
[1772094045515,3.70918556,87.67,87.631,1.32037335]
[1772094045827,11.40707813,87.665,87.641,1.32037335]
[1772094046028,0.1,87.68,87.651,1.32037335]
[1772094046528,0.13655412,87.68,87.651,1.32037335]
[1772094047119,0.13655412,87.68,87.65,15.01807827]
[1772094047120,0.1,87.68,87.653,1.32037335]
[1772094047523,0.03893163,87.679,87.642,1.32037335]
[1772094048034,0.03893163,87.679,87.65,3.60918556]
[1772094048209,0.03893163,87.679,87.642,1.32037335]
[1772094048829,0.03893163,87.679,87.651,1.32037335]
[1772094051316,0.03893163,87.679,87.652,11.40875279]
[1772094051532,0.03893163,87.679,87.653,1.32037335]
[1772094051733,3.70918556,87.69,87.671,1.32037335]
[1772094051734,0.1,87.69,87.671,1.32037335]
[1772094051908,0.1,87.7,87.681,1.32037335]
[1772094052111,0.1,87.71,87.691,1.32037335]
[1772094052310,0.1,87.73,87.701,1.27037335]
[1772094052532,11.39847944,87.731,87.711,1.26967199]
[1772094052736,3.70918556,87.74,87.701,1.26967199]
[1772094052931,0.2528016,87.729,87.691,1.26967199]
[1772094053627,0.1,87.74,87.718,1.26967199]
[1772094054134,0.1,87.74,87.721,1.26967199]
[1772094054335,0.1,87.76,87.731,1.26967199]
[1772094054534,0.25513993,87.776,87.741,1.26967199]
[1772094054733,11.64790552,87.775,87.741,1.26967199]
[1772094055038,0.2574467,87.769,87.732,1.26967199]
[1772094055533,3.60918556,87.76,87.732,1.26967199]
[1772094055733,3.60918556,87.76,87.682,45.61903216]
[1772094055734,0.2574467,87.759,87.721,1.26967199]
[1772094056114,0.26140811,87.749,87.713,1.22037335]
[1772094056332,3.60918556,87.74,87.713,1.22037335]
[1772094056533,0.26140811,87.749,87.713,1.22037335]
[1772094056734,0.26140811,87.757,87.721,1.22037335]
[1772094056938,0.26334585,87.758,87.721,1.22037335]
[1772094057923,9.63302311,87.75,87.721,1.22037335]
[1772094058118,0.26334585,87.758,87.721,1.22037335]
[1772094058834,11.66227117,87.757,87.722,1.22037335]
[1772094059030,11.39510238,87.757,87.722,1.22037335]
[1772094059238,11.39440478,87.763,87.731,1.22037335]
[1772094060446,0.2690157,87.773,87.731,1.22037335]
[1772094060652,0.2690157,87.773,87.741,1.22037335]
[1772094060837,11.39224643,87.779,87.741,1.22037335]
[1772094061039,11.39224643,87.779,87.697,91.22313343]
[1772094061040,11.38861366,87.807,87.771,1.22037335]
[1772094061233,11.38861366,87.807,87.78,9.63302311]
[1772094061428,11.38861366,87.807,87.78,10.85339646]
[1772094061642,0.2708505,87.806,87.771,1.22037335]
[1772094062822,11.38861366,87.807,87.771,1.22037335]
[1772094063036,11.38861366,87.807,87.773,1.22037335]
[1772094063548,11.38640918,87.824,87.781,1.22037335]
[1772094063724,9.63302311,87.82,87.791,1.22037335]
[1772094063931,1.29488801,87.809,87.77,9.63302311]
[1772094065049,11.38848396,87.808,87.77,21.02634755]
[1772094065353,11.3878598,87.813,87.78,9.63302311]
[1772094065548,1.29488801,87.812,87.78,9.63302311]
[1772094065929,1.29488801,87.812,87.781,1.21820637]
[1772094067048,11.3873168,87.817,87.791,1.21820637]
[1772094068725,11.3873168,87.817,87.75,3.69383402]
[1772094068726,1.29488801,87.809,87.728,1.21820637]
[1772094068927,1.29488801,87.807,87.771,1.21820637]
[1772094069122,1.29488801,87.799,87.761,1.21820637]
[1772094069328,9.63302311,87.79,87.761,1.21820637]
[1772094069949,5.36086188,87.836,87.76,9.63302311]
[1772094069950,1.29488801,87.836,87.781,1.21820637]
[1772094070252,1.29488801,87.836,87.78,9.63302311]
[1772094070253,1.29488801,87.849,87.82,9.63302311]
[1772094070549,1.29488801,87.848,87.82,9.63302311]
[1772094070746,1.29488801,87.839,87.81,9.63302311]
[1772094071147,9.63302311,87.89,87.832,1.25001429]
[1772094071453,11.37604659,87.904,87.851,1.25001429]
[1772094071454,9.60467001,87.88,87.851,1.25001429]
[1772094072152,39.81616308,87.904,87.851,1.25001429]
[1772094072351,0.2706943,87.907,87.84,9.60467001]
[1772094072352,3.69383402,87.901,87.891,1.25001429]
[1772094072558,0.2706943,87.907,87.891,1.25001429]
[1772094073131,5.94956779,87.979,87.901,1.25001429]
[1772094073132,9.60467001,87.94,87.901,1.25001429]
[1772094073353,0.24155077,87.939,87.901,1.25001429]
[1772094073649,9.60467001,87.91,87.88,9.60467001]
[1772094073855,9.60467001,87.92,87.882,1.25001429]
[1772094074152,39.79850584,87.943,87.911,1.25001429]
[1772094074153,11.37100167,87.943,87.911,1.25001429]
[1772094074451,9.60467001,87.94,87.911,1.25001429]
[1772094074656,11.37100167,87.943,87.911,1.25001429]
[1772094074854,0.24492742,87.983,87.931,1.25001429]
[1772094075038,0.24828683,87.99,87.951,1.25001429]
[1772094075362,9.60467001,87.98,87.915,0.14216157]
[1772094075532,9.60467001,87.97,87.93,9.60467001]
[1772094075732,12.23431329,88.046,87.9,9.60467001]
[1772094075733,1.29488801,87.949,87.9,9.60467001]
[1772094075952,9.60467001,87.93,87.868,39.83247598]
[1772094076144,1.29488801,87.94,87.89,9.60467001]
[1772094076342,9.60467001,87.93,87.89,9.60467001]
[1772094076561,9.60467001,87.93,87.868,39.83247598]
[1772094076562,9.60467001,87.92,87.868,11.38070742]
[1772094076736,9.60467001,87.92,87.88,9.60467001]
[1772094077032,20.97872135,87.92,87.88,20.98374209]
[1772094077240,11.37316013,87.927,87.89,9.60467001]